bitfinex/quotes_ETHUSD_20250411
["timestamp","ask_amount","ask_price","bid_price","bid_amount"]
[1744335722872,6.524,1532.8,1532.7,0.16028627]
[1744335723198,6.524,1532.8,1532.5,3.0]
[1744335723394,6.524,1532.8,1532.7,0.15930747]
[1744335723911,6.52326,1533.0,1532.7,6.68369747]
[1744335724098,13.04573,1533.1,1532.7,6.52426]
[1744335724269,13.04573,1533.1,1532.8,0.15972693]
[1744335724470,15.335573,1533.1,1532.8,0.15972693]
[1744335724857,6.52318,1533.0,1532.8,0.15972693]
[1744335725057,8.812633,1533.1,1532.8,0.15972693]
[1744335725506,15.335703,1533.1,1532.8,0.15972693]
[1744335726496,6.52317,1533.0,1532.8,0.15972693]
[1744335726706,8.0567503,1533.0,1532.8,0.15972693]
[1744335727006,6.52358,1532.9,1532.8,0.15972693]
[1744335727422,7.07358,1532.9,1532.8,0.15972693]
[1744335727620,8.43228,1532.9,1532.8,0.15972693]
[1744335727823,6.52545,1532.5,1532.3,1.2978]
[1744335728002,13.05106,1532.5,1532.3,1.2978]
[1744335728200,13.05106,1532.5,1532.4,0.15888803]
[1744335728414,14.356166,1532.5,1532.4,0.15888803]
[1744335728615,6.52576,1532.4,1532.2,3.0]
[1744335729023,6.52576,1532.4,1532.1,6.62684]
[1744335729692,13.05169,1532.4,1532.1,3.1]
[1744335730227,6.52576,1532.4,1532.1,3.1]
[1744335730891,6.52576,1532.4,1532.2,0.649603]
[1744335731089,6.52358,1532.9,1532.2,11.11662754]
[1744335731327,6.52506,1532.6,1532.3,3.59015839]
[1744335731495,1.5335803,1533.0,1532.3,3.59015839]
[1744335731496,6.52401,1532.8,1532.4,6.52541]
[1744335731897,6.52458,1532.7,1532.3,16.64215839]
[1744335732111,13.04927,1532.7,1532.3,9.52594]
[1744335732423,6.5255,1532.5,1532.3,3.0]
[1744335732936,6.5255,1532.5,1532.2,7.7786]
[1744335733425,6.5255,1532.5,1532.2,4.2521]
[1744335733426,6.52613,1532.3,1532.2,4.2521]
[1744335733603,6.5259,1532.4,1532.2,3.0]
[1744335734189,6.52491,1532.6,1532.1,0.1]
[1744335734421,7.8617,1532.7,1532.3,6.52592]
[1744335734738,6.52509,1532.6,1532.2,6.88115465]
[1744335734893,1.337,1532.7,1532.2,0.35459465]
[1744335734894,6.52544,1532.5,1532.2,0.35459465]
[1744335735093,7.177984,1532.5,1532.2,0.35459465]
[1744335735312,7.177984,1532.5,1532.1,16.15359]
[1744335736841,1.337,1532.4,1532.1,0.1]
[1744335737039,16.34377,1532.4,1532.1,6.62693]
[1744335737247,16.34377,1532.4,1532.1,0.1]
[1744335737412,6.52644,1532.3,1532.1,0.1]
[1744335737746,6.52656,1532.2,1532.1,0.1]
[1744335738243,7.83186,1532.2,1532.1,0.25022205]
[1744335738543,6.52644,1532.3,1532.1,0.25022205]
[1744335738544,13.05276,1532.3,1532.1,0.25022205]
[1744335738718,6.52632,1532.3,1532.1,0.25022205]
[1744335738935,15.00671,1532.4,1532.1,0.25022205]
[1744335739117,21.53263,1532.4,1532.1,0.25022205]
[1744335739331,6.52656,1532.2,1532.1,0.25022205]
[1744335739536,8.41356,1532.2,1532.1,0.25022205]
[1744335739745,7.86356,1532.2,1532.1,0.25022205]
[1744335739906,6.52656,1532.2,1532.1,0.25022205]
[1744335741723,1.887,1532.2,1532.1,2.05e-06]
[1744335742046,10.523524,1532.2,1532.1,0.12518521]
[1744335742250,7.07732,1532.1,1531.6,6.5289]
[1744335742409,6.52756,1532.0,1531.6,13.05783]
[1744335742614,6.52732,1532.1,1531.7,7.78077]
[1744335742908,6.52725,1532.1,1531.7,1.2521]
[1744335743606,6.52822,1531.9,1531.7,1.2521]
[1744335743840,6.52826,1531.8,1531.7,1.2521]
[1744335744150,6.52747,1532.0,1531.7,1.2521]
[1744335744349,7.86369,1532.2,1531.8,3.0]
[1744335744539,6.52669,1532.2,1531.8,16.05609]
[1744335744724,0.55,1532.3,1531.8,3.0]
[1744335745224,6.52715,1532.1,1531.8,3.0]
[1744335745550,0.55,1532.3,1531.9,4.2521]
[1744335745551,6.52621,1532.3,1531.9,4.2521]
[1744335745748,15.00691,1532.4,1532.0,6.52717]
[1744335745925,13.05192,1532.4,1532.0,6.52717]
[1744335746251,6.52623,1532.3,1532.0,6.52717]
[1744335746848,6.52623,1532.3,1532.1,3.0]
[1744335747009,7.86219,1532.6,1531.9,4.2521]
[1744335747010,6.52656,1532.2,1531.9,4.2521]
[1744335747212,6.52656,1532.2,1531.9,1.2521]
[1744335747423,13.05455,1532.1,1531.9,1.2521]
[1744335747648,6.52723,1532.1,1531.9,1.2521]
[1744335748375,6.52586,1532.4,1532.0,9.52726]
[1744335748541,6.52586,1532.4,1532.0,16.05452]
[1744335748737,0.55,1532.5,1532.0,3.0]
[1744335749070,6.52676,1532.2,1531.9,1.2521]
[1744335749283,6.52616,1532.3,1532.0,9.5274]
[1744335749950,6.52656,1532.2,1531.7,1.3199]
[1744335750142,6.52807,1531.9,1531.5,7.84929]
[1744335750344,6.52807,1531.9,1531.5,7.84923]
[1744335750641,6.52785,1531.9,1531.5,7.8494]
[1744335750841,6.52848,1531.8,1531.5,1.3199]
[1744335751035,6.52881,1531.7,1531.5,1.3199]
[1744335751343,6.52881,1531.7,1531.3,7.85015]
[1744335751672,6.52881,1531.7,1531.4,3.0]
[1744335751837,6.52881,1531.7,1531.3,8.33275184]
[1744335751838,14.363432,1531.7,1531.3,8.33275184]
[1744335752032,13.05772,1531.7,1531.3,8.33275184]
[1744335752235,6.52881,1531.7,1531.3,1.3199]
[1744335752475,6.52834,1531.8,1531.5,3.0]
[1744335752675,69.949328,1532.3,1531.7,6.52838]
[1744335752676,58.556288,1532.3,1531.7,6.52838]
[1744335752860,18.9092688,1532.2,1531.8,6.52809]
[1744335753433,12.3824188,1532.2,1531.8,6.52809]
[1744335753637,18.9092188,1532.2,1531.8,6.52809]
[1744335754009,6.52712,1532.1,1531.7,7.01582127]
[1744335754338,18.9093288,1532.2,1531.7,7.01582127]
[1744335754872,12.3824188,1532.2,1531.7,13.54432127]
[1744335755077,6.52679,1532.2,1531.7,13.54432127]
[1744335755285,6.52708,1532.1,1531.7,7.01582127]
[1744335756489,65.082528,1532.3,1531.7,0.48744127]
[1744335756695,6.52738,1532.1,1531.6,20.71604754]
[1744335757003,13.05476,1532.1,1531.7,7.11822957]
[1744335757360,13.05476,1532.1,1531.7,6.52867]
[1744335757770,6.52742,1532.0,1531.7,6.52867]
[1744335758116,6.52698,1532.1,1531.6,8.14308231]
[1744335758280,6.52787,1531.9,1531.6,4.3199]
[1744335758482,0.55,1532.1,1531.6,4.3199]
[1744335758483,6.52831,1531.8,1531.6,4.3199]
[1744335758803,6.52831,1531.8,1531.6,1.3199]
[1744335759020,6.52869,1531.7,1531.5,3.0]
[1744335759192,13.05775,1531.7,1531.5,3.0]
[1744335759400,6.52911,1531.6,1531.4,4.3199]
[1744335760905,6.5284,1531.8,1531.4,11.34981965]
[1744335761105,14.34752,1532.1,1531.6,9.86689754]
[1744335761333,6.52745,1532.0,1531.7,6.52866]
[1744335761641,13.05444,1532.1,1531.7,6.52866]
[1744335761792,6.52706,1532.1,1531.7,13.0572]
[1744335761998,13.05436,1532.1,1531.7,6.52854]
[1744335762198,6.52748,1532.0,1531.7,6.52854]
[1744335762803,7.80568,1532.0,1531.6,6.52911]
[1744335763006,8.586208,1532.0,1531.5,1.3695]
[1744335763216,6.52786,1531.9,1531.7,3.0]
[1744335763536,6.52786,1531.9,1531.6,0.58923681]
[1744335763834,13.05596,1531.9,1531.5,9.52927]
[1744335763992,6.52786,1531.9,1531.5,9.52927]
[1744335764189,16.28966,1532.0,1531.6,7.85363]
[1744335764433,6.52746,1532.0,1531.6,7.85363]
[1744335764814,6.52746,1532.0,1531.7,6.52867]
[1744335765219,6.52746,1532.0,1531.6,7.85363]
[1744335765418,6.52746,1532.0,1531.6,14.38254]
[1744335765736,6.52746,1532.0,1531.6,14.38245]
[1744335765933,6.52746,1532.0,1531.6,7.85351]
[1744335766233,13.05601,1531.9,1531.6,3.0]
[1744335766438,6.52785,1531.9,1531.6,3.0]
[1744335766640,6.52847,1531.8,1531.6,3.0]
[1744335767004,13.05707,1531.8,1531.6,3.0]
[1744335767622,6.52847,1531.8,1531.6,3.0]
[1744335767810,7.8061,1531.9,1531.6,9.52911]
[1744335768014,0.55,1531.9,1531.6,16.05808]
[1744335768249,6.52747,1532.0,1531.7,6.52864]
[1744335768535,8.80924,1532.0,1531.7,6.52861]
[1744335768734,6.52747,1532.0,1531.7,6.52861]
[1744335770029,6.52747,1532.0,1531.7,6.52856]
[1744335770405,8.485,1532.1,1531.8,7.8526]
[1744335770608,13.05356,1532.2,1531.8,7.8526]
[1744335770815,21.52356,1532.2,1531.8,7.8526]
[1744335771119,0.55,1532.1,1531.8,7.8526]
[1744335771555,7.07708,1532.1,1531.8,7.8526]
[1744335772244,9.284449,1532.1,1531.8,7.8526]
[1744335773842,15.811759,1532.1,1531.8,1.3246]
[1744335774027,15.811799,1532.1,1531.8,1.3246]
[1744335774228,15.811809,1532.1,1531.8,1.3246]
[1744335774423,6.52742,1532.0,1531.6,10.85364]
[1744335774739,6.52742,1532.0,1531.7,6.52862]
[1744335774899,1.5811809,1532.0,1531.7,13.05717]
[1744335775103,9.284389,1532.1,1531.8,6.52821]
[1744335775718,9.284389,1532.1,1531.7,13.0572]
[1744335776442,6.52749,1532.0,1531.7,6.5286]
[1744335776661,13.05694,1531.8,1531.4,6.5297]
[1744335776956,13.05694,1531.8,1531.2,6.53082]
[1744335776957,6.52979,1531.5,1531.2,6.53082]
[1744335778430,13.05961,1531.5,1531.2,3.0]
[1744335778629,6.52979,1531.5,1531.2,3.0]
[1744335779058,0.55,1531.5,1531.2,9.53078]
[1744335779225,0.55,1531.5,1531.2,9.53063]
[1744335779562,2.583894,1531.7,1531.4,6.52975]
[1744335779768,2.583894,1531.7,1531.4,13.05958]
[1744335779950,2.583894,1531.7,1531.4,6.52975]
[1744335780338,9.112644,1531.7,1531.4,6.52975]
[1744335780765,1.2782,1531.7,1531.5,6.52938]
[1744335781147,7.85018,1532.0,1531.6,6.52896]
[1744335781468,1.3227,1532.0,1531.7,6.52853]
[1744335781634,73.171409,1532.1,1531.8,6.52816]
[1744335781834,1.9694643,1532.0,1531.8,6.52816]
[1744335782034,7.84966,1532.2,1531.8,7.84283]
[1744335782332,6.52773,1532.0,1531.7,3.0]
[1744335782557,6.52784,1531.9,1531.7,3.0]
[1744335782754,1.353,1531.8,1531.5,6.52951]
[1744335783065,7.8813,1531.8,1531.4,6.52989]
[1744335783366,0.55,1531.9,1531.7,6.52854]
[1744335783668,7.07788,1531.9,1531.5,7.11929545]
[1744335783833,0.55,1531.9,1531.5,0.58975545]
[1744335784167,14.99882,1532.0,1531.7,6.52858]
[1744335784367,14.99882,1532.0,1531.7,13.05708]
[1744335784368,8.471,1532.0,1531.7,13.05708]
[1744335784571,8.471,1532.0,1531.7,6.52846]
[1744335785135,8.43007,1532.1,1531.7,13.05692]
[1744335785331,9.925734,1532.1,1531.7,13.05692]
[1744335785554,7.0777,1532.0,1531.6,7.8924]
[1744335785738,13.6054,1532.0,1531.6,7.8924]
[1744335785937,7.0777,1532.0,1531.6,14.42136]
[1744335786151,7.0777,1532.0,1531.7,6.52865]
[1744335786473,0.55,1532.0,1531.7,13.0573]
[1744335787269,0.55,1532.0,1531.7,6.52865]
[1744335788672,0.55,1532.0,1531.7,13.05717]
[1744335788979,0.55,1532.0,1531.7,6.52852]
[1744335789665,7.07744,1532.0,1531.6,7.89236]
[1744335789971,7.07744,1532.0,1531.6,14.42133]
[1744335790276,0.55,1531.8,1531.6,3.0]
[1744335790645,7.0783,1531.8,1531.6,3.0]
[1744335790884,7.0783,1531.8,1531.5,6.52935]
[1744335791972,6.52875,1531.7,1531.3,7.89362]
[1744335792150,6.52937,1531.6,1531.4,0.59111769]
[1744335793041,6.52937,1531.6,1531.1,6.06]
[1744335793042,0.55,1531.4,1531.1,1.3117]
[1744335793247,7.08024,1531.4,1531.2,0.59122137]
[1744335794338,6.53039,1531.3,1530.9,8.34373325]
[1744335794538,7.86457,1531.2,1530.8,15.53149943]
[1744335794773,14.39574,1531.2,1530.9,0.59093342]
[1744335795072,6.53167,1531.0,1530.9,0.59093342]
[1744335795477,7.08167,1531.0,1530.9,0.59093342]
[1744335795862,0.55,1531.0,1530.5,7.46630053]
[1744335796062,7.0817,1531.0,1530.6,9.53319]
[1744335796243,7.0817,1531.0,1530.5,7.46630053]
[1744335796244,6.53284,1530.8,1530.5,7.46630053]
[1744335796447,6.53296,1530.7,1530.5,7.46630053]
[1744335796753,7.319184,1530.8,1530.5,7.46630053]
[1744335797275,7.319184,1530.8,1530.6,0.12462529]
[1744335797457,0.786624,1530.8,1530.6,0.12462529]
[1744335797657,7.08276,1530.8,1530.6,0.12462529]
[1744335797899,15.00347,1531.1,1530.7,6.53292]
[1744335797900,16.33687,1531.1,1530.7,6.53292]
[1744335798065,7.970464,1531.2,1530.8,6.53234]
[1744335798254,7.86386,1531.3,1531.1,6.53122]
[1744335798255,1.3334,1531.3,1531.1,6.53122]
[1744335798579,6.53013,1531.4,1531.0,6.5314]
[1744335798784,14.39289,1531.5,1531.1,0.13714394]
[1744335799079,0.55,1531.4,1531.1,6.66822394]
[1744335799501,7.86299,1531.5,1531.1,7.97989394]
[1744335799684,1.3334,1531.5,1531.2,6.53064]
[1744335800081,6.5283,1531.8,1531.3,0.13406402]
[1744335800282,6.52901,1531.7,1531.3,0.13406402]
[1744335800505,7.967428,1531.8,1531.4,13.05955]
[1744335800685,1.3334,1531.9,1531.6,6.52891]
[1744335800894,1.3334,1531.9,1531.5,6.66263431]
[1744335801077,1.3334,1531.9,1531.7,0.13315438]
[1744335801275,14.72814564,1532.0,1531.6,6.52884]
[1744335801489,6.52784,1531.9,1531.8,0.13315438]
[1744335801670,6.52784,1531.9,1531.7,0.13077605]
[1744335801671,7.07826,1531.8,1531.7,0.13077605]
[1744335801996,0.55,1531.7,1531.5,6.06]
[1744335802196,7.07903,1531.7,1531.5,6.06]
[1744335802401,13.60809,1531.7,1531.5,6.06]
[1744335802604,7.07903,1531.7,1531.5,6.06]
[1744335802788,0.55,1531.7,1531.5,6.06]
[1744335803368,9.7884,1531.8,1531.5,12.58938]
[1744335803580,8.455,1531.8,1531.5,20.43045]
[1744335803782,7.86088,1532.0,1531.7,6.52869]
[1744335803985,14.38854,1532.0,1531.6,6.52904]
[1744335804284,1.3334,1532.0,1531.5,7.3717]
[1744335804482,6.52887,1531.7,1531.5,6.06]
[1744335804678,7.0783,1531.8,1531.5,6.06]
[1744335805225,7.86086,1532.0,1531.6,6.529]
[1744335805505,1.3334,1532.0,1531.7,6.52849]
[1744335805667,14.38605,1532.3,1531.9,6.52767]
[1744335805864,6.52722,1532.1,1531.7,9.52861]
[1744335806070,7.07742,1532.0,1531.7,9.52861]
[1744335806304,8.437884,1532.0,1531.7,9.52861]
[1744335806501,6.52802,1531.9,1531.7,3.0]
[1744335806676,6.52802,1531.9,1531.6,10.84066]
[1744335806891,3.170764,1532.0,1531.7,6.52866]
[1744335807102,1.910464,1532.0,1531.7,6.52851]
[1744335807409,8.437884,1532.0,1531.7,6.52851]
[1744335807569,1.360464,1532.0,1531.8,6.52825]
[1744335807778,6.52698,1532.1,1531.6,16.90077]
[1744335807972,6.52756,1532.0,1531.6,23.42968]
[1744335808170,6.52756,1532.0,1531.6,23.42952]
[1744335809712,13.05527,1532.0,1531.6,16.90061]
[1744335810175,13.05532,1532.0,1531.6,16.90061]
[1744335810374,7.888092,1532.0,1531.6,23.42954]
[1744335811110,7.78693,1532.2,1531.6,10.3717]
[1744335811315,7.78693,1532.2,1531.8,13.05616]
[1744335811514,1.2603,1532.2,1531.9,6.52747]
[1744335811697,6.52614,1532.3,1531.9,7.86747]
[1744335812014,16.24106,1532.4,1531.7,6.52859]
[1744335812015,6.52699,1532.1,1531.7,6.52859]
[1744335812185,0.55,1532.0,1531.8,3.0]
[1744335812511,7.07747,1532.0,1531.8,3.0]
[1744335813079,7.07747,1532.0,1531.6,6.06]
[1744335813080,6.52784,1531.9,1531.6,6.06]
[1744335813273,6.52784,1531.9,1531.6,9.52907]
[1744335813478,7.07747,1532.0,1531.6,9.52907]
[1744335813677,7.07747,1532.0,1531.6,16.05796]
[1744335814073,13.60516,1532.0,1531.6,9.52889]
[1744335814294,15.091706,1532.0,1531.6,9.52889]
[1744335814510,15.091706,1532.0,1531.6,10.00746035]
[1744335814721,8.564016,1532.0,1531.6,10.00746035]
[1744335815441,8.564016,1532.0,1531.6,16.53641035]
[1744335816440,15.091826,1532.0,1531.6,10.00746035]
[1744335816634,0.55,1531.7,1531.5,3.0]
[1744335816799,0.55,1531.7,1531.5,9.52954]
[1744335817005,0.55,1531.7,1531.5,3.0]
[1744335817436,7.07872,1531.7,1531.5,3.0]
[1744335817736,7.07872,1531.7,1531.3,7.87033]
[1744335818039,13.05881,1531.6,1531.3,3.48698692]
[1744335818541,6.52933,1531.6,1531.3,3.48698692]
[1744335819137,13.05868,1531.6,1531.3,3.48698692]
[1744335819641,6.52933,1531.6,1531.3,3.48698692]
[1744335820139,6.52933,1531.6,1531.3,10.01737692]
[1744335820533,1.2603,1531.8,1531.4,7.86997]
[1744335820737,7.78867,1531.8,1531.5,6.52937]
[1744335821241,6.52886,1531.7,1531.4,6.52997]
[1744335821543,7.07925,1531.6,1531.3,3.48698692]
[1744335821716,13.60875,1531.6,1531.3,3.48698692]
[1744335822540,13.60874,1531.6,1531.3,3.48698692]
[1744335822738,6.52957,1531.5,1531.3,3.48698692]
[1744335825347,0.55,1531.6,1531.3,0.48698692]
[1744335825642,6.52871,1531.7,1531.2,1.2874]
[1744335825846,6.52871,1531.7,1531.4,6.52996]
[1744335827044,0.55,1531.7,1531.4,13.05976]
[1744335827342,1.2603,1531.8,1531.5,6.52938]
[1744335827847,1.2603,1531.8,1531.6,6.52911]
[1744335828051,0.55,1531.8,1531.6,6.52911]
[1744335828748,0.55,1531.8,1531.5,10.75666402]
[1744335829048,0.55,1531.8,1531.5,11.23914877]
[1744335829271,14.96228,1532.1,1531.7,2.93988402]
[1744335829468,6.52763,1532.0,1531.7,2.93988402]
[1744335829673,6.527,1532.1,1531.7,6.52839]
[1744335829974,6.527,1532.1,1531.8,6.52826]
[1744335830271,7.89583,1532.2,1531.8,13.05634]
[1744335830572,1.3692,1532.2,1531.6,2.93988402]
[1744335830774,6.52614,1532.3,1532.0,6.52726]
[1744335831075,16.32994,1532.4,1532.0,6.52726]
[1744335831378,9.8042,1532.4,1532.1,6.52684]
[1744335831548,1.3692,1532.4,1532.1,6.52684]
[1744335832571,7.07628,1532.3,1532.1,0.49985968]
[1744335832777,7.920828,1532.3,1531.9,6.52777]
[1744335832959,0.55,1532.1,1531.8,13.87562]
[1744335833142,7.07714,1532.1,1531.8,7.81562]
[1744335833361,7.07714,1532.1,1531.8,4.2874]
[1744335833574,8.44634,1532.1,1531.8,3.0]
[1744335834161,1.9192,1532.1,1531.8,9.52826]
[1744335834775,8.44648,1532.1,1531.8,3.0]
[1744335834937,6.52741,1532.0,1531.8,3.0]
[1744335835139,7.07728,1532.1,1531.8,3.0]
[1744335835437,13.60461,1532.1,1531.8,3.0]
[1744335835661,0.55,1531.9,1531.8,3.0]
[1744335835863,7.07784,1531.9,1531.8,3.49537441]
[1744335836059,0.55,1531.9,1531.8,3.49537441]
[1744335836277,0.55,1531.9,1531.8,0.49537441]
[1744335836582,0.55,1531.9,1531.7,6.52859]
[1744335836875,0.55,1531.9,1531.7,13.0571]
[1744335837174,7.89625,1532.1,1531.7,13.0571]
[1744335838750,0.55,1532.1,1531.8,13.05627]
[1744335839074,7.07704,1532.1,1531.8,6.52807]
[1744335839374,7.07704,1532.1,1531.7,9.52855]
[1744335839576,6.52745,1532.0,1531.7,10.00640722]
[1744335840082,7.07704,1532.1,1531.7,10.00633722]
[1744335840379,0.55,1532.1,1531.8,13.0563]
[1744335840880,0.55,1532.1,1531.8,13.05623]
[1744335841976,0.55,1532.1,1531.9,6.5278]
[1744335842182,7.07701,1532.1,1531.8,6.52822]
[1744335842382,6.52793,1531.9,1531.7,3.47785722]
[1744335842587,0.55,1531.8,1531.5,6.52945]
[1744335842785,6.52871,1531.7,1531.4,7.84814]
[1744335842943,6.52871,1531.7,1531.4,1.3182]
[1744335843148,6.52871,1531.7,1531.4,7.84817]
[1744335843382,7.07832,1531.8,1531.5,3.0]
[1744335843569,7.786152,1531.8,1531.5,3.0]
[1744335844176,0.55,1531.8,1531.5,16.05885]
[1744335844382,0.55,1531.8,1531.5,9.5294]
[1744335844787,0.55,1531.8,1531.5,16.05879]
[1744335844988,1.3634,1532.0,1531.7,6.52838]
[1744335845195,1.3634,1532.0,1531.7,13.05687]
[1744335845522,0.55,1532.0,1531.7,13.05687]
[1744335845660,7.07768,1532.0,1531.6,6.52904]
[1744335845849,8.0578238,1532.0,1531.6,13.05795]
[1744335846352,8.0578238,1532.0,1531.7,6.52869]
[1744335846871,8.0578238,1532.0,1531.6,6.52891]
[1744335847281,6.52841,1531.8,1531.5,3.48588226]
[1744335847462,6.52841,1531.8,1531.5,0.48588226]
[1744335847463,6.52883,1531.7,1531.5,0.48588226]
[1744335847785,13.05775,1531.7,1531.4,3.0]
[1744335847953,6.52913,1531.6,1531.4,3.0]
[1744335848147,13.05789,1531.7,1531.4,3.0]
[1744335848343,6.52883,1531.7,1531.4,3.0]
[1744335848785,6.52883,1531.7,1531.4,9.52995]
[1744335848994,13.0579,1531.7,1531.4,3.0]
[1744335849154,6.52883,1531.7,1531.4,3.0]
[1744335849490,6.52883,1531.7,1531.4,9.52997]
[1744335849690,6.52883,1531.7,1531.4,16.05976]
[1744335849862,0.55,1531.7,1531.4,16.05976]
[1744335850186,1.3634,1531.8,1531.4,3.49368636]
[1744335850391,6.52754,1532.0,1531.7,6.52863]
[1744335850556,14.41772,1532.1,1531.7,6.52849]
[1744335851184,14.41772,1532.1,1531.5,10.72609163]
[1744335851185,0.55,1531.8,1531.5,20.43675]
[1744335851391,6.52748,1532.0,1531.6,6.52905]
[1744335851582,13.05521,1532.0,1531.6,6.52895]
[1744335851986,13.05521,1532.0,1531.6,13.0579]
[1744335852193,13.05521,1532.0,1531.6,13.05791]
[1744335852366,6.52786,1531.9,1531.6,6.52894]
[1744335852696,7.833394,1531.9,1531.5,13.90772]
[1744335852862,6.5284,1531.8,1531.5,13.90772]
[1744335853195,7.07911,1531.6,1531.5,6.06]
[1744335853395,7.07911,1531.6,1531.4,0.49368636]
[1744335853692,7.07911,1531.6,1531.3,7.86944]
[1744335854265,7.07911,1531.6,1531.3,4.3391]
[1744335854501,13.60848,1531.6,1531.3,4.3391]
[1744335855395,6.52957,1531.5,1531.3,3.0]
[1744335855802,6.52957,1531.5,1531.3,3.48634494]
[1744335855976,13.05937,1531.5,1531.3,3.48634494]
[1744335856600,6.52957,1531.5,1531.3,3.48634494]
[1744335856900,6.52917,1531.6,1531.3,3.48634494]
[1744335857200,13.60867,1531.6,1531.3,3.48634494]
[1744335857500,13.60863,1531.6,1531.3,3.48634494]
[1744335857667,13.6087,1531.6,1531.3,3.48634494]
[1744335858063,13.05938,1531.5,1531.3,3.48634494]
[1744335858295,0.55,1531.6,1531.3,0.48634494]
[1744335858479,0.55,1531.6,1531.3,7.86931]
[1744335858669,6.53014,1531.4,1531.1,1.3391]
[1744335858892,6.53014,1531.4,1531.1,7.87029]
[1744335859188,7.08058,1531.3,1531.1,3.0]
[1744335860209,7.08058,1531.3,1531.1,3.49006042]
[1744335860907,0.55,1531.3,1531.1,3.49006042]
[1744335861106,1.3415,1531.4,1531.1,10.02114042]
[1744335861605,7.87153,1531.4,1531.1,10.02114042]
[1744335862309,6.53269,1530.8,1530.5,1.3004]
[1744335862509,0.55,1530.9,1530.6,6.53322]
[1744335862713,0.55,1530.9,1530.6,13.06643]
[1744335862931,7.8858,1531.1,1530.7,6.53292]
[1744335863077,0.55,1531.1,1530.8,7.83278]
[1744335863276,0.55,1531.1,1530.8,14.36512]
[1744335863503,6.53085,1531.2,1530.8,14.36512]
[1744335863717,6.5315,1531.1,1530.8,4.3004]
[1744335863869,6.53185,1531.0,1530.8,1.3004]
[1744335864075,6.5321,1530.9,1530.8,1.3004]
[1744335864276,6.5321,1530.9,1530.6,14.38659042]
[1744335866575,6.53133,1531.1,1530.7,3.0]
[1744335866981,6.53133,1531.1,1530.8,6.53236]
[1744335868715,6.53133,1531.1,1530.7,9.53295]
[1744335869287,14.4156,1531.3,1530.9,7.77785]
[1744335869638,6.53045,1531.3,1530.9,14.30977]
[1744335869789,6.53003,1531.4,1531.0,6.53134]
[1744335870542,6.53003,1531.4,1531.1,6.53124]
[1744335870817,13.06021,1531.4,1531.1,6.53124]
[1744335871490,6.53003,1531.4,1531.1,6.53124]
[1744335872727,6.53003,1531.4,1531.1,0.48164014]
[1744335872932,6.53044,1531.3,1531.0,6.53134]
[1744335873524,6.53003,1531.4,1531.0,13.06283]
[1744335874128,8.414,1531.6,1531.2,1.2459]
[1744335874328,8.414,1531.6,1531.4,9.5299]
[1744335875798,8.414,1531.6,1531.4,9.52981]
[1744335875998,16.28168,1531.9,1531.5,7.77528]
[1744335876318,6.5285,1531.8,1531.5,1.2459]
[1744335876512,13.05697,1531.8,1531.5,1.2459]
[1744335876719,6.52847,1531.8,1531.5,1.2459]
[1744335877432,6.52847,1531.8,1531.5,7.7754]
[1744335878337,18.459878,1531.9,1531.5,14.30476]
[1744335878497,16.28171,1531.9,1531.6,6.52893]
[1744335878697,8.414,1531.9,1531.6,6.52893]
[1744335878899,14.94185,1531.9,1531.6,3.0]
[1744335879113,6.52841,1531.8,1531.6,3.0]
[1744335879709,6.52899,1531.7,1531.5,3.0]
[1744335880337,7.86823,1531.8,1531.5,3.0]
[1744335880636,7.86823,1531.8,1531.5,9.52951]
[1744335881407,0.55,1531.9,1531.6,7.77481]
[1744335882727,0.55,1531.9,1531.7,6.52866]
[1744335882928,6.52745,1532.0,1531.7,6.52866]
[1744335883116,9.308572,1532.1,1531.8,6.52816]
[1744335884145,15.835802,1532.1,1531.7,7.01446023]
[1744335884309,9.308572,1532.1,1531.7,13.54297023]
[1744335884723,9.308572,1532.1,1531.8,6.52824]
[1744335884923,9.308572,1532.1,1531.7,13.54297023]
[1744335887144,9.308572,1532.1,1531.8,6.52823]
[1744335887641,9.308572,1532.1,1531.7,7.01446023]
[1744335887802,6.52753,1532.0,1531.7,13.54298023]
[1744335888004,6.52753,1532.0,1531.7,7.01446023]
[1744335888548,9.308572,1532.1,1531.7,13.54296023]
[1744335890049,9.308572,1532.1,1531.7,7.01445023]
[1744335890250,0.55,1531.9,1531.6,13.83495]
[1744335891151,7.07801,1531.9,1531.6,13.83495]
[1744335891549,7.86684,1532.1,1531.6,1.2459]
[1744335891720,0.55,1532.0,1531.7,6.52851]
[1744335891931,0.55,1532.0,1531.7,13.0572]
[1744335892665,7.07749,1532.0,1531.6,7.77488]
[1744335892823,6.52821,1531.9,1531.6,7.77501]
[1744335893329,6.52821,1531.9,1531.6,6.52911]
[1744335894356,6.52821,1531.9,1531.6,13.05804]
[1744335894555,7.07744,1532.0,1531.7,6.52861]
[1744335894724,7.86681,1532.1,1531.8,6.52812]
[1744335894920,14.3941,1532.1,1531.7,7.8663]
[1744335895256,14.3941,1532.1,1531.7,14.39484]
[1744335895418,14.39404,1532.1,1531.7,14.39484]
[1744335896351,7.86681,1532.1,1531.7,14.88608008]
[1744335896555,14.39402,1532.1,1531.7,14.88608008]
[1744335896723,7.86681,1532.1,1531.8,6.5282]
[1744335897431,1.3398,1532.1,1531.8,13.05627]
[1744335897865,7.81301,1532.3,1531.9,6.52783]
[1744335898090,0.34010263,1532.5,1532.1,6.52668]